[Event "*** Titled Tuesday Blitz"]
[Site "Chess.com"]
[Date "2020.11.24"]
[Round "4"]
[White "ChainsOfFantasia"]
[Black "annamaja"]
[Result "1-0"]
[WhiteElo "2480"]
[BlackElo "2296"]
[TimeControl "180+1"]
[EndTime "10:54:39 PST"]
[Termination "ChainsOfFantasia won on time"]

1. d4 {[%clk 0:03:00.9]} 1... d5 {[%clk 0:03:00.3]} 2. Nf3 {[%clk 0:03:01.1]}
2... Nf6 {[%clk 0:03:00.3]} 3. c4 {[%clk 0:03:01.6]} 3... c6 {[%clk 0:02:59.8]}
4. Nc3 {[%clk 0:03:01.5]} 4... e6 {[%clk 0:02:59.7]} 5. e3 {[%clk 0:03:01]} 5...
Bd6 {[%clk 0:02:59.6]} 6. Qc2 {[%clk 0:03:00.6]} 6... O-O {[%clk 0:02:59.3]} 7.
Bd3 {[%clk 0:02:59.9]} 7... Nbd7 {[%clk 0:02:58.7]} 8. O-O {[%clk 0:02:59.7]}
8... dxc4 {[%clk 0:02:55]} 9. Bxc4 {[%clk 0:03:00.6]} 9... b5 {[%clk 0:02:55.7]}
10. Be2 {[%clk 0:03:00.5]} 10... Bb7 {[%clk 0:02:56.3]} 11. e4 {[%clk
0:03:00.7]} 11... e5 {[%clk 0:02:54.6]} 12. dxe5 {[%clk 0:03:01.6]} 12... Nxe5
{[%clk 0:02:55.5]} 13. Nd4 {[%clk 0:03:01.5]} 13... Qb6 {[%clk 0:02:42.7]} 14.
Nf5 {[%clk 0:03:01]} 14... Bc5 {[%clk 0:02:40.6]} 15. Bg5 {[%clk 0:02:49.1]}
15... Ned7 {[%clk 0:02:31.4]} 16. a4 {[%clk 0:02:47.6]} 16... a6 {[%clk
0:02:26]} 17. a5 {[%clk 0:02:45.9]} 17... Qa7 {[%clk 0:02:24.1]} 18. e5 {[%clk
0:02:35.1]} 18... Nxe5 {[%clk 0:02:09.7]} 19. Bxf6 {[%clk 0:02:34.8]} 19... gxf6
{[%clk 0:02:10.6]} 20. Ne4 {[%clk 0:02:35]} 20... Bd4 {[%clk 0:01:47.9]} 21.
Nxf6+ {[%clk 0:02:24.5]} 21... Kh8 {[%clk 0:01:47.1]} 22. Nxd4 {[%clk 0:02:25]}
22... Kg7 {[%clk 0:01:23.8]} 23. Nh5+ {[%clk 0:02:19.4]} 23... Kh8 {[%clk
0:01:17.7]} 24. Qf5 {[%clk 0:02:16.2]} 24... f6 {[%clk 0:01:00.7]} 25. Nxf6
{[%clk 0:02:14.3]} 25... Bc8 {[%clk 0:01:00.1]} 26. Qxh7+ {[%clk 0:02:14.1]}
26... Qxh7 {[%clk 0:00:59.7]} 27. Nxh7 {[%clk 0:02:13]} 27... Kxh7 {[%clk
0:00:58.3]} 28. Rac1 {[%clk 0:02:08.6]} 28... Bd7 {[%clk 0:00:51.6]} 29. f4
{[%clk 0:02:06.8]} 29... Ng6 {[%clk 0:00:40.9]} 30. Bd3 {[%clk 0:02:01.5]} 30...
Kg7 {[%clk 0:00:39.5]} 31. Bxg6 {[%clk 0:01:59.2]} 31... Kxg6 {[%clk 0:00:37.5]}
32. Nxc6 {[%clk 0:02:00.1]} 32... Be6 {[%clk 0:00:10.2]} 33. f5+ {[%clk
0:01:49.2]} 33... Bxf5 {[%clk 0:00:08.2]} 34. Ne7+ {[%clk 0:01:49.5]} 34... Kg5
{[%clk 0:00:07.1]} 35. Rc5 {[%clk 0:01:49.4]} 35... Rae8 {[%clk 0:00:06.5]} 36.
Rcxf5+ {[%clk 0:01:48.8]} 36... Rxf5 {[%clk 0:00:06.2]} 37. Rxf5+ {[%clk
0:01:47.9]} 37... Kg4 {[%clk 0:00:05]} 38. h3+ {[%clk 0:01:47.3]} 38... Kg3
{[%clk 0:00:03.9]} 39. Rf3+ {[%clk 0:01:46.8]} 39... Kh4 {[%clk 0:00:03.8]} 40.
Nf5+ {[%clk 0:01:46.5]} 40... Kg5 {[%clk 0:00:04]} 41. Kh2 {[%clk 0:01:46]}
41... Re2 {[%clk 0:00:04]} 42. b3 {[%clk 0:01:44.1]} 42... Ra2 {[%clk
0:00:03.5]} 43. Nd4 {[%clk 0:01:39.4]} 43... Rxa5 {[%clk 0:00:03.4]} 44. Kg3
{[%clk 0:01:36.3]} 44... Ra2 {[%clk 0:00:03.5]} 45. h4+ {[%clk 0:01:36.9]} 45...
Kg6 {[%clk 0:00:03.3]} 46. Kh3 {[%clk 0:01:30.7]} 46... Rd2 {[%clk 0:00:03.2]}
47. Nc6 {[%clk 0:01:28.1]} 47... Rd6 {[%clk 0:00:01.9]} 48. Ne5+ {[%clk
0:01:26.8]} 48... Kg7 {[%clk 0:00:01.6]} 49. g4 {[%clk 0:01:26.4]} 1-0

[Event "*** Titled Tuesday Blitz"]
[Site "Chess.com"]
[Date "2020.11.24"]
[Round "4"]
[White "beto-betun"]
[Black "bazar-wokzal"]
[Result "0-1"]
[WhiteElo "2191"]
[BlackElo "2520"]
[TimeControl "180+1"]
[EndTime "10:54:41 PST"]
[Termination "bazar-wokzal won by resignation"]

1. d4 {[%clk 0:03:00.9]} 1... Nf6 {[%clk 0:02:59.8]} 2. Nf3 {[%clk 0:03:01.5]}
2... e6 {[%clk 0:02:59.7]} 3. g3 {[%clk 0:03:02]} 3... b5 {[%clk 0:02:59.5]} 4.
Bg2 {[%clk 0:03:02.2]} 4... Bb7 {[%clk 0:03:00]} 5. O-O {[%clk 0:03:02.4]} 5...
c5 {[%clk 0:02:59.8]} 6. c4 {[%clk 0:02:56.6]} 6... bxc4 {[%clk 0:02:59.2]} 7.
Qc2 {[%clk 0:02:55.4]} 7... d5 {[%clk 0:02:51.5]} 8. b3 {[%clk 0:02:48.8]} 8...
cxb3 {[%clk 0:02:50.1]} 9. Qxb3 {[%clk 0:02:49.1]} 9... Qb6 {[%clk 0:02:49.9]}
10. Bf4 {[%clk 0:02:33.8]} 10... Nc6 {[%clk 0:02:39.7]} 11. Nbd2 {[%clk
0:02:23.4]} 11... cxd4 {[%clk 0:02:31.3]} 12. Qxb6 {[%clk 0:01:58.3]} 12... axb6
{[%clk 0:02:31]} 13. Nb3 {[%clk 0:01:53.4]} 13... Bc5 {[%clk 0:02:28.2]} 14.
Rfc1 {[%clk 0:01:48.5]} 14... Nd7 {[%clk 0:02:23]} 15. Nxc5 {[%clk 0:01:22]}
15... bxc5 {[%clk 0:02:20.5]} 16. Bd6 {[%clk 0:01:22.4]} 16... c4 {[%clk
0:02:14.3]} 17. Rcb1 {[%clk 0:01:02.6]} 17... Ba6 {[%clk 0:02:08.9]} 18. Nd2
{[%clk 0:00:48.5]} 18... f6 {[%clk 0:02:02.6]} 19. e4 {[%clk 0:00:40.1]} 19...
dxe3 {[%clk 0:01:59.8]} 20. fxe3 {[%clk 0:00:39.6]} 20... Kf7 {[%clk 0:01:53.9]}
21. e4 {[%clk 0:00:31.2]} 21... d4 {[%clk 0:01:53.9]} 22. Bf1 {[%clk 0:00:26.8]}
22... Nde5 {[%clk 0:01:45.8]} 23. Rb6 {[%clk 0:00:22.4]} 23... Rhc8 {[%clk
0:01:38]} 24. Rab1 {[%clk 0:00:22.1]} 24... d3 {[%clk 0:01:30.3]} 25. a4 {[%clk
0:00:18.6]} 25... c3 {[%clk 0:01:25.3]} 26. Nb3 {[%clk 0:00:17.2]} 26... Nf3+
{[%clk 0:01:16.6]} 27. Kf2 {[%clk 0:00:16.1]} 27... c2 {[%clk 0:01:05.3]} 28.
Rb2 {[%clk 0:00:13.5]} 28... Ncd4 {[%clk 0:01:03.1]} 29. Nxd4 {[%clk 0:00:11.8]}
29... Nxd4 {[%clk 0:01:00.5]} 30. Rb7+ {[%clk 0:00:08]} 30... Bxb7 {[%clk
0:00:59.4]} 31. Rxb7+ {[%clk 0:00:08.9]} 31... Kg6 {[%clk 0:00:59.4]} 32. Ba3
{[%clk 0:00:07.9]} 32... c1=Q {[%clk 0:00:58.3]} 33. Bxc1 {[%clk 0:00:07.4]}
33... Rxc1 {[%clk 0:00:59.1]} 34. Bxd3 {[%clk 0:00:07.8]} 34... Rxa4 {[%clk
0:00:55.2]} 35. e5+ {[%clk 0:00:08.7]} 35... f5 {[%clk 0:00:55]} 36. Kg2 {[%clk
0:00:08.7]} 36... Ra2+ {[%clk 0:00:53.6]} 37. Kh3 {[%clk 0:00:09.6]} 37... Rh1
{[%clk 0:00:53.1]} 0-1

[Event "*** Titled Tuesday Blitz"]
[Site "Chess.com"]
[Date "2020.11.24"]
[Round "4"]
[White "Vi_Los"]
[Black "DenishevM"]
[Result "0-1"]
[WhiteElo "2351"]
[BlackElo "2594"]
[TimeControl "180+1"]
[EndTime "10:54:42 PST"]
[Termination "DenishevM won by resignation"]

1. e4 {[%clk 0:02:58.4]} 1... g6 {[%clk 0:02:58.6]} 2. d4 {[%clk 0:02:58.1]}
2... Bg7 {[%clk 0:02:58.9]} 3. Nc3 {[%clk 0:02:57.8]} 3... d6 {[%clk 0:02:57.7]}
4. f4 {[%clk 0:02:56.2]} 4... a6 {[%clk 0:02:57.3]} 5. Nf3 {[%clk 0:02:54.6]}
5... b5 {[%clk 0:02:57.5]} 6. Bd3 {[%clk 0:02:54.3]} 6... Nd7 {[%clk 0:02:57.3]}
7. e5 {[%clk 0:02:34.5]} 7... Nb6 {[%clk 0:02:53.5]} 8. Ne4 {[%clk 0:02:26.1]}
8... Nh6 {[%clk 0:02:49.5]} 9. c3 {[%clk 0:02:22.6]} 9... O-O {[%clk 0:02:49.4]}
10. O-O {[%clk 0:02:22.4]} 10... Bb7 {[%clk 0:02:38.7]} 11. Neg5 {[%clk
0:02:14.9]} 11... e6 {[%clk 0:02:33.5]} 12. Qe2 {[%clk 0:02:10.9]} 12... Qe7
{[%clk 0:02:04.1]} 13. Be3 {[%clk 0:01:57.5]} 13... Nd5 {[%clk 0:02:00.8]} 14.
Bd2 {[%clk 0:01:54.9]} 14... c5 {[%clk 0:01:58.3]} 15. Ne4 {[%clk 0:01:49.4]}
15... dxe5 {[%clk 0:01:55.3]} 16. fxe5 {[%clk 0:01:38]} 16... cxd4 {[%clk
0:01:53.9]} 17. cxd4 {[%clk 0:01:37.9]} 17... Nb4 {[%clk 0:01:43]} 18. Bb1
{[%clk 0:01:36.7]} 18... Bxe4 {[%clk 0:01:36.3]} 19. Bxe4 {[%clk 0:01:35.5]}
19... Rac8 {[%clk 0:01:30.7]} 20. Bg5 {[%clk 0:01:29.2]} 20... Qd7 {[%clk
0:01:26.6]} 21. a3 {[%clk 0:01:23.2]} 21... Nd5 {[%clk 0:01:25.7]} 22. Rfd1
{[%clk 0:01:05]} 22... Rc6 {[%clk 0:01:18.8]} 23. Nd2 {[%clk 0:00:59.4]} 23...
Rfc8 {[%clk 0:01:09.3]} 24. Nb3 {[%clk 0:00:58]} 24... Bf8 {[%clk 0:01:02.3]}
25. Qf3 {[%clk 0:00:43.1]} 25... Nf5 {[%clk 0:00:58.4]} 26. Bxf5 {[%clk
0:00:30.7]} 26... exf5 {[%clk 0:00:59.3]} 27. Rac1 {[%clk 0:00:23.4]} 27... Rxc1
{[%clk 0:00:55.7]} 28. Rxc1 {[%clk 0:00:23.4]} 28... Rc4 {[%clk 0:00:46.7]} 29.
Qd3 {[%clk 0:00:20.3]} 29... Nb6 {[%clk 0:00:41.4]} 30. Be3 {[%clk 0:00:15.4]}
30... Qd5 {[%clk 0:00:36.6]} 31. Nd2 {[%clk 0:00:13.8]} 0-1

[Event "*** Titled Tuesday Blitz"]
[Site "Chess.com"]
[Date "2020.11.24"]
[Round "4"]
[White "Mazetovic"]
[Black "kuban1991"]
[Result "1-0"]
[WhiteElo "2779"]
[BlackElo "2888"]
[TimeControl "180+1"]
[EndTime "10:54:44 PST"]
[Termination "Mazetovic won by resignation"]

1. e4 {[%clk 0:03:00.9]} 1... e6 {[%clk 0:02:59.8]} 2. d4 {[%clk 0:02:59.8]}
2... d5 {[%clk 0:03:00.2]} 3. Nc3 {[%clk 0:02:54.8]} 3... Bb4 {[%clk 0:02:58.7]}
4. e5 {[%clk 0:02:49.9]} 4... c5 {[%clk 0:02:58.2]} 5. a3 {[%clk 0:02:49.6]}
5... Bxc3+ {[%clk 0:02:58.3]} 6. bxc3 {[%clk 0:02:50.5]} 6... Nc6 {[%clk
0:02:59.1]} 7. h4 {[%clk 0:02:49.7]} 7... Bd7 {[%clk 0:02:57.7]} 8. h5 {[%clk
0:02:49.5]} 8... Qa5 {[%clk 0:02:58.2]} 9. Bd2 {[%clk 0:02:26.6]} 9... O-O-O
{[%clk 0:02:55.7]} 10. Nf3 {[%clk 0:02:24.2]} 10... c4 {[%clk 0:02:54.7]} 11. a4
{[%clk 0:02:15]} 11... f6 {[%clk 0:02:53.1]} 12. Qb1 {[%clk 0:01:57.8]} 12...
fxe5 {[%clk 0:02:46.2]} 13. Nxe5 {[%clk 0:01:53.2]} 13... Nxe5 {[%clk
0:02:44.4]} 14. dxe5 {[%clk 0:01:53.4]} 14... Ne7 {[%clk 0:02:41.5]} 15. Qb4
{[%clk 0:01:49.1]} 15... Qxb4 {[%clk 0:02:24.3]} 16. cxb4 {[%clk 0:01:48.9]}
16... Nc6 {[%clk 0:02:25.2]} 17. f4 {[%clk 0:01:47.3]} 17... Nd4 {[%clk
0:02:23.9]} 18. Ra2 {[%clk 0:01:33.7]} 18... Rhf8 {[%clk 0:02:22]} 19. c3 {[%clk
0:01:31.2]} 19... Nf5 {[%clk 0:02:20.3]} 20. Kf2 {[%clk 0:01:18.8]} 20... h6
{[%clk 0:02:09.2]} 21. g4 {[%clk 0:01:15.2]} 21... Ne7 {[%clk 0:02:09.6]} 22.
Be3 {[%clk 0:01:11.3]} 22... b6 {[%clk 0:02:07.4]} 23. Kg3 {[%clk 0:01:08.7]}
23... Bc6 {[%clk 0:02:01.9]} 24. Bd4 {[%clk 0:01:08.2]} 24... Kc7 {[%clk
0:01:56.4]} 25. Bh3 {[%clk 0:01:08]} 25... a5 {[%clk 0:01:40.1]} 26. b5 {[%clk
0:01:07.9]} 26... Bd7 {[%clk 0:01:40.2]} 27. Rf1 {[%clk 0:01:08.1]} 27... Rf7
{[%clk 0:01:38]} 28. Raf2 {[%clk 0:01:08.1]} 28... Rdf8 {[%clk 0:01:37.8]} 29.
Bg2 {[%clk 0:01:05.4]} 29... Bc8 {[%clk 0:01:28.7]} 30. Bf3 {[%clk 0:01:05.2]}
30... Rg8 {[%clk 0:01:26.8]} 31. Bd1 {[%clk 0:01:04.2]} 31... Bd7 {[%clk
0:01:14.8]} 32. Bc2 {[%clk 0:01:03.7]} 32... g6 {[%clk 0:00:37.1]} 33. hxg6
{[%clk 0:01:02.8]} 33... Nxg6 {[%clk 0:00:38]} 34. Rh1 {[%clk 0:01:00.8]} 34...
Rfg7 {[%clk 0:00:36]} 35. Rxh6 {[%clk 0:00:56.3]} 35... Ne7 {[%clk 0:00:36.4]}
36. g5 {[%clk 0:00:51.9]} 36... Rf7 {[%clk 0:00:30.4]} 37. Rfh2 {[%clk
0:00:50.4]} 37... Nf5+ {[%clk 0:00:19.5]} 38. Bxf5 {[%clk 0:00:49.9]} 38... Rxf5
{[%clk 0:00:20.4]} 39. Rf6 {[%clk 0:00:50.2]} 39... Rg7 {[%clk 0:00:15.3]} 40.
Rxf5 {[%clk 0:00:49.5]} 40... exf5 {[%clk 0:00:16.2]} 41. e6 {[%clk 0:00:49.5]}
1-0

[Event "*** Titled Tuesday Blitz"]
[Site "Chess.com"]
[Date "2020.11.24"]
[Round "4"]
[White "Zarinur"]
[Black "Fh2411"]
[Result "0-1"]
[WhiteElo "2229"]
[BlackElo "2540"]
[TimeControl "180+1"]
[EndTime "10:54:45 PST"]
[Termination "Fh2411 won by checkmate"]

1. e4 {[%clk 0:03:00.9]} 1... c5 {[%clk 0:02:58.2]} 2. Nf3 {[%clk 0:02:57.6]}
2... e6 {[%clk 0:02:57.4]} 3. g3 {[%clk 0:02:57]} 3... b6 {[%clk 0:02:55.3]} 4.
Bg2 {[%clk 0:02:56.4]} 4... Bb7 {[%clk 0:02:55.8]} 5. Qe2 {[%clk 0:02:56.5]}
5... d5 {[%clk 0:02:54.2]} 6. exd5 {[%clk 0:02:55.8]} 6... Bxd5 {[%clk
0:02:53.8]} 7. O-O {[%clk 0:02:55.5]} 7... Nf6 {[%clk 0:02:38.2]} 8. Rd1 {[%clk
0:02:54.4]} 8... Nc6 {[%clk 0:02:33.7]} 9. d4 {[%clk 0:02:45.8]} 9... c4 {[%clk
0:02:00.6]} 10. Nc3 {[%clk 0:02:32.8]} 10... Be7 {[%clk 0:01:57.2]} 11. Nxd5
{[%clk 0:02:29.6]} 11... exd5 {[%clk 0:01:58.1]} 12. Bg5 {[%clk 0:02:22.7]}
12... O-O {[%clk 0:01:57.3]} 13. Ne5 {[%clk 0:02:19.8]} 13... Rc8 {[%clk
0:01:55.3]} 14. c3 {[%clk 0:02:18]} 14... h6 {[%clk 0:01:52.6]} 15. Bxf6 {[%clk
0:02:07.7]} 15... Bxf6 {[%clk 0:01:53.5]} 16. Nxc6 {[%clk 0:02:08.2]} 16... Rxc6
{[%clk 0:01:52.5]} 17. Qf3 {[%clk 0:02:08.3]} 17... Rd6 {[%clk 0:01:52.5]} 18.
Re1 {[%clk 0:02:06.3]} 18... b5 {[%clk 0:01:50.3]} 19. a3 {[%clk 0:01:48.4]}
19... a5 {[%clk 0:01:49.7]} 20. Re2 {[%clk 0:01:45.2]} 20... Qb8 {[%clk
0:01:43.2]} 21. Qf5 {[%clk 0:01:40]} 21... Rfd8 {[%clk 0:01:42.7]} 22. Rae1
{[%clk 0:01:37.5]} 22... g6 {[%clk 0:01:39.6]} 23. Qf4 {[%clk 0:01:35.4]} 23...
Kg7 {[%clk 0:01:39.5]} 24. h4 {[%clk 0:01:23]} 24... h5 {[%clk 0:01:36.3]} 25.
Kh1 {[%clk 0:01:11.6]} 25... b4 {[%clk 0:01:33.7]} 26. axb4 {[%clk 0:00:59.7]}
26... axb4 {[%clk 0:01:33.5]} 27. Qd2 {[%clk 0:00:45.6]} 27... bxc3 {[%clk
0:01:27.9]} 28. bxc3 {[%clk 0:00:46.4]} 28... Rb6 {[%clk 0:01:27]} 29. Qc2
{[%clk 0:00:39.3]} 29... Rb3 {[%clk 0:01:25.1]} 30. Re3 {[%clk 0:00:19.4]} 30...
Rb2 {[%clk 0:01:15.4]} 31. Qc1 {[%clk 0:00:19.3]} 31... Rxf2 {[%clk 0:01:13.8]}
32. Qa3 {[%clk 0:00:16.2]} 32... Qb3 {[%clk 0:00:52.9]} 33. Qc5 {[%clk
0:00:12.5]} 33... Qc2 {[%clk 0:00:48.2]} 34. Bxd5 {[%clk 0:00:06.2]} 34... Rh2+
{[%clk 0:00:47.5]} 35. Kg1 {[%clk 0:00:07.1]} 35... Qf2# {[%clk 0:00:48.1]} 0-1

[Event "*** Titled Tuesday Blitz"]
[Site "Chess.com"]
[Date "2020.11.24"]
[Round "4"]
[White "RamyresCoelho"]
[Black "Loy_Konstantin"]
[Result "0-1"]
[WhiteElo "2094"]
[BlackElo "2395"]
[TimeControl "180+1"]
[EndTime "10:54:46 PST"]
[Termination "Loy_Konstantin won on time"]

1. e4 {[%clk 0:03:00.3]} 1... c5 {[%clk 0:02:59.1]} 2. Nf3 {[%clk 0:03:00.2]}
2... d6 {[%clk 0:02:57.4]} 3. d4 {[%clk 0:02:59.7]} 3... cxd4 {[%clk 0:02:56.5]}
4. Nxd4 {[%clk 0:02:59.9]} 4... Nf6 {[%clk 0:02:55.9]} 5. Nc3 {[%clk 0:03:00.2]}
5... g6 {[%clk 0:02:55.6]} 6. f4 {[%clk 0:03:00.7]} 6... Nc6 {[%clk 0:02:54.5]}
7. Nxc6 {[%clk 0:02:59.5]} 7... bxc6 {[%clk 0:02:54]} 8. e5 {[%clk 0:03:00.4]}
8... Nd7 {[%clk 0:02:54.3]} 9. exd6 {[%clk 0:02:57.8]} 9... exd6 {[%clk
0:02:54.1]} 10. Qd4 {[%clk 0:02:56.6]} 10... Nf6 {[%clk 0:02:37]} 11. Be2 {[%clk
0:02:45.3]} 11... Be7 {[%clk 0:02:36.4]} 12. Be3 {[%clk 0:02:42.2]} 12... O-O
{[%clk 0:02:35.7]} 13. O-O {[%clk 0:02:39.8]} 13... d5 {[%clk 0:02:32.1]} 14.
Na4 {[%clk 0:02:19.4]} 14... Bf5 {[%clk 0:02:20.6]} 15. Bd3 {[%clk 0:02:12.6]}
15... Ne4 {[%clk 0:02:02.9]} 16. Rad1 {[%clk 0:01:37.4]} 16... c5 {[%clk
0:01:52]} 17. Qe5 {[%clk 0:01:26.6]} 17... Bf6 {[%clk 0:01:48.1]} 18. Bxe4
{[%clk 0:01:06.2]} 18... Bxe5 {[%clk 0:01:46.5]} 19. Rxd5 {[%clk 0:01:00.2]}
19... Qa5 {[%clk 0:01:16.6]} 20. Nxc5 {[%clk 0:00:49.1]} 20... Bxe4 {[%clk
0:01:10.2]} 21. Rxe5 {[%clk 0:00:48.9]} 21... Bxc2 {[%clk 0:01:01.5]} 22. Nd7
{[%clk 0:00:45.2]} 22... Qa6 {[%clk 0:00:49.4]} 23. Bd4 {[%clk 0:00:37.8]} 23...
Rfd8 {[%clk 0:00:40.1]} 24. Rfe1 {[%clk 0:00:26]} 24... Qd6 {[%clk 0:00:29.2]}
25. Nf8 {[%clk 0:00:02.3]} 25... Rxf8 {[%clk 0:00:25]} 0-1

[Event "*** Titled Tuesday Blitz"]
[Site "Chess.com"]
[Date "2020.11.24"]
[Round "4"]
[White "Gevo1990"]
[Black "Kislov_Oleg"]
[Result "1-0"]
[WhiteElo "2586"]
[BlackElo "2360"]
[TimeControl "180+1"]
[EndTime "10:54:48 PST"]
[Termination "Gevo1990 won on time"]

1. e4 {[%clk 0:03:00.9]} 1... c5 {[%clk 0:02:59.9]} 2. Nc3 {[%clk 0:02:59.1]}
2... Nc6 {[%clk 0:02:59.5]} 3. Bb5 {[%clk 0:02:58.3]} 3... g6 {[%clk 0:02:52.8]}
4. Bxc6 {[%clk 0:02:57.8]} 4... dxc6 {[%clk 0:02:52.5]} 5. f4 {[%clk 0:02:58.1]}
5... Bg7 {[%clk 0:02:48.7]} 6. Nf3 {[%clk 0:02:58.7]} 6... Bg4 {[%clk
0:02:38.5]} 7. d3 {[%clk 0:02:57.6]} 7... e5 {[%clk 0:02:32.2]} 8. fxe5 {[%clk
0:02:51]} 8... Bxe5 {[%clk 0:02:26.9]} 9. O-O {[%clk 0:02:51.1]} 9... Ne7 {[%clk
0:02:17.9]} 10. Bh6 {[%clk 0:02:49.5]} 10... Qd6 {[%clk 0:02:08.5]} 11. h3
{[%clk 0:02:48.7]} 11... Bxf3 {[%clk 0:01:45]} 12. Qxf3 {[%clk 0:02:47.7]} 12...
Qe6 {[%clk 0:01:41.4]} 13. Kh1 {[%clk 0:02:37.4]} 13... f6 {[%clk 0:01:29.2]}
14. a4 {[%clk 0:02:19.1]} 14... Rg8 {[%clk 0:01:21.6]} 15. Be3 {[%clk
0:02:16.7]} 15... Qd6 {[%clk 0:01:11.1]} 16. a5 {[%clk 0:02:16.1]} 16... Rf8
{[%clk 0:00:58.5]} 17. Na4 {[%clk 0:02:13.3]} 17... Bd4 {[%clk 0:00:58.2]} 18.
Bf4 {[%clk 0:02:10.1]} 18... Be5 {[%clk 0:00:44.6]} 19. Bxe5 {[%clk 0:02:01.5]}
19... Qxe5 {[%clk 0:00:44.7]} 20. Qe3 {[%clk 0:02:01.6]} 20... Qd4 {[%clk
0:00:44.9]} 21. Qxd4 {[%clk 0:02:00.9]} 21... cxd4 {[%clk 0:00:45]} 22. Nc5
{[%clk 0:02:01.6]} 22... Kf7 {[%clk 0:00:36.7]} 23. Nxb7 {[%clk 0:02:00.5]}
23... a6 {[%clk 0:00:27.3]} 24. b3 {[%clk 0:01:55.4]} 24... Rab8 {[%clk
0:00:22.7]} 25. Nd6+ {[%clk 0:01:55.5]} 25... Ke6 {[%clk 0:00:22.6]} 26. Nc4
{[%clk 0:01:56.4]} 26... Rb5 {[%clk 0:00:22.2]} 27. Rae1 {[%clk 0:01:55]} 27...
Nc8 {[%clk 0:00:18.5]} 28. e5 {[%clk 0:01:52.9]} 28... f5 {[%clk 0:00:18.4]} 29.
Rf4 {[%clk 0:01:53.4]} 29... Rd5 {[%clk 0:00:17.6]} 30. h4 {[%clk 0:01:45.6]}
30... c5 {[%clk 0:00:18]} 31. Kh2 {[%clk 0:01:43.7]} 31... Na7 {[%clk
0:00:14.9]} 32. g4 {[%clk 0:01:41.3]} 32... Nc6 {[%clk 0:00:13.9]} 33. gxf5+
{[%clk 0:01:41.2]} 33... Rxf5 {[%clk 0:00:11.6]} 34. Rxf5 {[%clk 0:01:41]} 34...
gxf5 {[%clk 0:00:12]} 35. Kg3 {[%clk 0:01:39.7]} 35... Rd8 {[%clk 0:00:07]} 36.
Nb6 {[%clk 0:01:30.5]} 36... Rg8+ {[%clk 0:00:06.9]} 37. Kh3 {[%clk 0:01:26.5]}
37... Rg4 {[%clk 0:00:06]} 38. Na4 {[%clk 0:01:24.5]} 38... Nxe5 {[%clk
0:00:02.5]} 39. Nxc5+ {[%clk 0:01:23.8]} 39... Kd5 {[%clk 0:00:03]} 40. Nxa6
{[%clk 0:01:23.2]} 40... Rg6 {[%clk 0:00:02.7]} 41. Nb4+ {[%clk 0:01:22]} 41...
Kc5 {[%clk 0:00:03]} 42. Rxe5+ {[%clk 0:01:21.2]} 42... Kxb4 {[%clk 0:00:03.5]}
43. Rxf5 {[%clk 0:01:20.1]} 43... Kc3 {[%clk 0:00:04.1]} 44. Rc5+ {[%clk
0:01:20]} 44... Kd2 {[%clk 0:00:03.5]} 45. b4 {[%clk 0:01:19.3]} 45... Ke3
{[%clk 0:00:03]} 46. b5 {[%clk 0:01:18.5]} 46... Kf3 {[%clk 0:00:01.2]} 47. Rf5+
{[%clk 0:01:18.3]} 47... Ke3 {[%clk 0:00:01.4]} 48. a6 {[%clk 0:01:18.3]} 1-0

[Event "*** Titled Tuesday Blitz"]
[Site "Chess.com"]
[Date "2020.11.24"]
[Round "4"]
[White "Shield12"]
[Black "BocharovD"]
[Result "0-1"]
[WhiteElo "2908"]
[BlackElo "2802"]
[TimeControl "180+1"]
[EndTime "10:54:51 PST"]
[Termination "BocharovD won by resignation"]

1. e4 {[%clk 0:03:00.9]} 1... c5 {[%clk 0:02:59.7]} 2. Nf3 {[%clk 0:03:01]} 2...
e6 {[%clk 0:03:00.2]} 3. d4 {[%clk 0:03:00.7]} 3... cxd4 {[%clk 0:03:01.1]} 4.
Nxd4 {[%clk 0:03:01.6]} 4... a6 {[%clk 0:03:01.3]} 5. c4 {[%clk 0:03:01.3]} 5...
Nf6 {[%clk 0:03:00.4]} 6. Nc3 {[%clk 0:03:00.3]} 6... Qc7 {[%clk 0:03:00.5]} 7.
a3 {[%clk 0:03:00.6]} 7... b6 {[%clk 0:02:54.9]} 8. Be3 {[%clk 0:03:00.5]} 8...
Bb7 {[%clk 0:02:55.3]} 9. f3 {[%clk 0:03:01.4]} 9... d6 {[%clk 0:02:54.2]} 10.
Be2 {[%clk 0:03:01.4]} 10... Be7 {[%clk 0:02:54.7]} 11. Qd2 {[%clk 0:03:02.1]}
11... O-O {[%clk 0:02:54.4]} 12. O-O {[%clk 0:03:02.9]} 12... Nbd7 {[%clk
0:02:54.8]} 13. Rfc1 {[%clk 0:03:03.8]} 13... Rfc8 {[%clk 0:02:54.7]} 14. a4
{[%clk 0:03:03.6]} 14... Rab8 {[%clk 0:02:53.8]} 15. Bf1 {[%clk 0:03:01.5]}
15... Qd8 {[%clk 0:02:49.3]} 16. Rab1 {[%clk 0:02:55.8]} 16... Ne5 {[%clk
0:02:40.5]} 17. b3 {[%clk 0:02:53.4]} 17... h5 {[%clk 0:02:26.3]} 18. Qf2 {[%clk
0:02:53.1]} 18... h4 {[%clk 0:02:25]} 19. Nde2 {[%clk 0:02:44.7]} 19... Nd3
{[%clk 0:02:12.3]} 20. Bxb6 {[%clk 0:02:40.6]} 20... Qe8 {[%clk 0:01:29.6]} 21.
Qe3 {[%clk 0:02:38.8]} 21... Nxc1 {[%clk 0:01:28.9]} 22. Rxc1 {[%clk 0:02:39.7]}
22... Nd7 {[%clk 0:01:28.6]} 23. Bd4 {[%clk 0:02:23.8]} 23... Bc6 {[%clk
0:01:29]} 24. Nb1 {[%clk 0:02:18]} 24... e5 {[%clk 0:01:25.1]} 25. Ba1 {[%clk
0:02:17]} 25... Qd8 {[%clk 0:01:20.7]} 26. Nd2 {[%clk 0:01:44.1]} 26... Nc5
{[%clk 0:01:15.5]} 27. Rb1 {[%clk 0:01:37.4]} 27... Bg5 {[%clk 0:01:11.7]} 28.
f4 {[%clk 0:01:36.2]} 28... exf4 {[%clk 0:01:10.8]} 29. Nxf4 {[%clk 0:01:37.1]}
29... Ne6 {[%clk 0:01:05]} 30. g3 {[%clk 0:01:37]} 30... hxg3 {[%clk 0:01:04.6]}
31. hxg3 {[%clk 0:01:37.9]} 31... Bh6 {[%clk 0:00:57.5]} 32. Nf3 {[%clk
0:01:31.8]} 32... Qe7 {[%clk 0:00:54.1]} 33. Re1 {[%clk 0:01:29]} 33... Re8
{[%clk 0:00:50.5]} 34. Nd4 {[%clk 0:01:02.9]} 34... Nxd4 {[%clk 0:00:44.8]} 35.
Bxd4 {[%clk 0:01:02.3]} 35... Qxe4 {[%clk 0:00:43.4]} 36. Qxe4 {[%clk
0:01:01.2]} 36... Rxe4 {[%clk 0:00:44.3]} 37. Rxe4 {[%clk 0:00:56.2]} 37... Bxe4
{[%clk 0:00:45.2]} 38. Nd5 {[%clk 0:00:49.3]} 38... Rxb3 {[%clk 0:00:40.5]} 39.
Kf2 {[%clk 0:00:46.7]} 39... Bxd5 {[%clk 0:00:36.2]} 40. cxd5 {[%clk 0:00:47.6]}
40... Rb4 {[%clk 0:00:36.4]} 41. Bc3 {[%clk 0:00:40]} 41... Rxa4 {[%clk
0:00:36.6]} 42. Ke2 {[%clk 0:00:39.2]} 42... Bg5 {[%clk 0:00:33.5]} 43. Kd3
{[%clk 0:00:40.1]} 43... Bf6 {[%clk 0:00:32.3]} 44. Bg2 {[%clk 0:00:41]} 44...
Ra3 {[%clk 0:00:31.8]} 45. Be4 {[%clk 0:00:41.9]} 45... Rxc3+ {[%clk 0:00:31.7]}
0-1